bitfinex-derivatives/quotes_SOLF0:USTF0_20240920
["timestamp","ask_amount","ask_price","bid_price","bid_amount"]
[1726846810335,23.44,147.64,147.52,1.3167]
[1726846810536,2.7111,147.63,147.52,1.3167]
[1726846810738,3.3871,147.62,147.57,3.3879]
[1726846811038,3.3871,147.62,147.52,1.3167]
[1726846811229,3.3871,147.62,147.58,3.3877]
[1726846811638,3.3871,147.61,147.52,1.3167]
[1726846811829,2.7111,147.63,147.52,1.3167]
[1726846812031,3.3869,147.62,147.52,1.3167]
[1726846812227,2.7111,147.63,147.52,1.3167]
[1726846812635,3.387,147.62,147.52,1.3167]
[1726846813335,2.7111,147.63,147.52,1.3167]
[1726846813837,3.3871,147.62,147.52,1.3167]
[1726846815042,3.3871,147.62,147.57,3.3878]
[1726846815244,3.3871,147.62,147.52,1.3167]
[1726846815541,3.3871,147.62,147.58,3.3877]
[1726846816238,6.0978,147.63,147.59,3.3875]
[1726846816440,2.7111,147.63,147.56,23.44]
[1726846816838,1.3517,147.63,147.62,3.3869]
[1726846817138,3.3858,147.67,147.62,3.3869]
[1726846817139,1.3492,147.67,147.62,3.39251829]
[1726846817338,1.3492,147.67,147.58,23.44]
[1726846817539,1.3492,147.67,147.59,1.3758]
[1726846817746,1.3492,147.67,147.61,3.387]
[1726846817936,23.44,147.66,147.61,3.387]
[1726846818133,3.3865,147.64,147.59,4.7218965]
[1726846818334,23.44,147.63,147.58,3.3878]
[1726846818538,23.44,147.63,147.54,1.3758]
[1726846818841,3.387,147.62,147.58,3.3876]
[1726846819335,23.44,147.63,147.54,1.3758]
[1726846819532,23.44,147.58,147.51,3.40924495]
[1726846819742,23.44,147.58,147.5,135.54]
[1726846819934,1.2909,147.57,147.5,138.86328228]
[1726846820347,1.3492,147.61,147.5,162.30328228]
[1726846821437,1.3492,147.61,147.57,3.388]
[1726846822748,4.7363,147.61,147.57,3.388]
[1726846823148,3.3873,147.6,147.56,3.3882]
[1726846823540,1.3492,147.61,147.5,162.30328228]
[1726846823949,1.3492,147.61,147.5,138.86328228]
[1726846823950,24.7892,147.61,147.5,138.86328228]
[1726846824251,23.44,147.58,147.5,138.86328228]
[1726846824544,23.44,147.56,147.5,138.86328228]
[1726846825037,26.8284,147.56,147.5,138.86328228]
[1726846825239,23.44,147.56,147.5,138.86328228]
[1726846825441,23.44,147.53,147.44,7.07785813]
[1726846825644,23.44,147.53,147.49,3.3897]
[1726846826547,23.44,147.53,147.5,3.3896]
[1726846826747,23.44,147.53,147.41,9.77546596]
[1726846826952,23.44,147.53,147.41,13.24472228]
[1726846827146,26.8289,147.53,147.41,13.24472228]
[1726846827348,23.44,147.53,147.41,13.24472228]
[1726846827748,3.3894,147.51,147.41,13.24472228]
[1726846828150,3.3892,147.52,147.41,13.24472228]
[1726846828857,1.3754,147.55,147.43,23.44]
[1726846829355,4.7639,147.55,147.5,3.3894]
[1726846829656,4.7639,147.55,147.51,3.3893]
[1726846831256,1.3754,147.55,147.43,23.44]
[1726846832150,3.3888,147.54,147.5,3.3896]
[1726846832451,23.44,147.53,147.42,135.56]
[1726846832756,23.44,147.51,147.42,135.56]
[1726846832948,1.2958,147.5,147.42,135.56]
[1726846833152,23.44,147.48,147.42,135.56]
[1726846833349,1.3418,147.47,147.36,1.3502]
[1726846833851,4.7322,147.47,147.36,1.3502]
[1726846834248,26.8308,147.45,147.4,3.3917]
[1726846834447,23.44,147.45,147.35,1.4123]
[1726846834846,26.8309,147.45,147.35,1.4123]
[1726846835057,23.44,147.45,147.35,1.4123]
[1726846835457,3.3912,147.44,147.38,3.3922]
[1726846836056,1.3304,147.43,147.38,3.3922]
[1726846836262,1.3304,147.43,147.39,3.3921]
[1726846837158,1.3304,147.43,147.4,3.3919]
[1726846837462,1.3304,147.43,147.35,1.4123]
[1726846838168,1.3304,147.43,147.41,3.3915]
[1726846838458,1.3304,147.43,147.35,1.4123]
[1726846838665,2.7625,147.47,147.35,24.8523]
[1726846838864,2.7625,147.47,147.43,3.3912]
[1726846839863,23.44,147.45,147.35,1.4123]
[1726846840365,26.8309,147.45,147.41,3.3915]
[1726846840962,23.44,147.45,147.42,3.3914]
[1726846841667,3.3906,147.46,147.35,1.4123]
[1726846841668,6.1529,147.47,147.43,3.3911]
[1726846841858,2.7625,147.47,147.41,3.47217649]
[1726846842161,2.7625,147.47,147.36,23.44]
[1726846842352,2.7625,147.47,147.45,3.3906]
[1726846842771,2.7625,147.47,147.43,3.33345223]
[1726846843064,2.7625,147.47,147.36,23.44]
[1726846843361,2.7625,147.47,147.38,23.44]
[1726846845556,23.44,147.55,147.4,23.44]
[1726846845756,23.44,147.55,147.48,3.3899]
[1726846845757,3.3893,147.52,147.48,3.3899]
[1726846846070,2.7987,147.54,147.48,3.33480295]
[1726846846366,2.7987,147.54,147.41,1.4008]
[1726846846567,2.7987,147.54,147.43,23.44]
[1726846847063,2.7987,147.54,147.51,3.3893]
[1726846847568,2.7987,147.54,147.43,23.44]
[1726846847769,2.7987,147.54,147.44,6.782]
[1726846847972,2.7987,147.54,147.45,23.44]
[1726846848162,1.2852,147.6,147.45,23.44]
[1726846848365,4.0025,147.6,147.47,30.2205]
[1726846848564,4.0025,147.6,147.48,1.327]
[1726846848773,4.0025,147.6,147.57,3.3878]
[1726846848966,4.0025,147.6,147.49,6.7797]
[1726846849878,2.7173,147.6,147.59,3.3875]
[1726846855275,23.44,147.66,147.63,3.3864]
[1726846855480,2.6344,147.65,147.52,23.44]
[1726846855673,2.6344,147.65,147.53,1.3308]
[1726846855977,2.6344,147.65,147.54,23.44]
[1726846856180,2.6344,147.65,147.55,1.3168]
[1726846856978,2.6344,147.65,147.55,8.0937]
[1726846858275,2.6344,147.65,147.63,3.3864]
[1726846858670,2.6344,147.65,147.6,3.34338165]
[1726846858868,2.6344,147.65,147.55,8.0937]
[1726846859473,2.6344,147.65,147.55,31.5337]
[1726846860577,40.3462,147.87,147.6,23.44]
[1726846860578,23.44,147.71,147.6,23.44]
[1726846860780,2.7015,147.72,147.61,1.3154]
[1726846860972,2.7015,147.72,147.61,2.721]
[1726846861381,2.7015,147.72,147.61,3.9774]
[1726846861577,2.7015,147.72,147.68,3.3853]
[1726846862383,2.7015,147.72,147.62,6.7738]
[1726846862578,2.7015,147.72,147.62,30.2138]
[1726846863781,2.7015,147.72,147.69,3.3851]
[1726846864983,6.0861,147.72,147.68,3.3853]
[1726846865184,23.44,147.73,147.68,3.37238437]
[1726846865387,23.44,147.75,147.62,30.2138]
[1726846866086,16.8929,147.99,147.68,23.44]
[1726846866288,2.6857,147.82,147.7,23.44]
[1726846866585,6.0681,147.82,147.7,23.44]
[1726846866981,3.3825,147.81,147.7,26.76057967]
[1726846867284,2.6857,147.82,147.7,26.76057967]
[1726846867488,3.3829,147.8,147.7,26.76057967]
[1726846867691,2.6857,147.82,147.7,26.76057967]
[1726846867897,23.44,147.81,147.7,3.32057967]
[1726846868189,23.44,147.81,147.69,10.6843]
[1726846868190,3.3831,147.79,147.69,10.6843]
[1726846868794,3.3833,147.78,147.74,3.384]
[1726846869384,3.3831,147.79,147.75,3.3838]
[1726846869682,2.6857,147.82,147.7,23.44]
[1726846869877,1.2952,147.82,147.81,3.3825]
[1726846870081,23.44,147.88,147.75,23.44]
[1726846870389,2.778,147.87,147.76,1.3931]
[1726846870589,1.2993,147.89,147.78,23.44]
[1726846870786,23.44,147.93,147.8,23.44]
[1726846870985,1.3824,147.94,147.8,23.44]
[1726846871185,1.3824,147.94,147.8,26.88518995]
[1726846871581,23.44,147.93,147.8,26.88518995]
[1726846872290,23.44,147.93,147.8,3.44518995]
[1726846872491,23.44,147.93,147.8,23.44]
[1726846872683,1.3824,147.94,147.8,26.79724205]
[1726846873191,1.3824,147.94,147.89,3.3807]
[1726846873392,1.3824,147.94,147.83,23.44]
[1726846873690,1.3824,147.94,147.89,3.3805]
[1726846874592,1.3824,147.94,147.9,3.3804]
[1726846874890,6.1107,147.95,147.85,23.44]
[1726846874891,1.3672,147.95,147.85,23.44]
[1726846875097,1.3672,147.95,147.85,24.693]
[1726846876301,1.3672,147.95,147.87,23.44]
[1726846876490,26.1787,148.02,147.87,23.44]
[1726846876686,1.3277,148.01,147.9,23.44]
[1726846876994,4.7056,148.01,147.9,26.76387127]
[1726846877191,1.3277,148.01,147.9,26.76387127]
[1726846877395,1.3277,148.01,147.96,3.3789]
[1726846877698,1.3277,148.01,147.93,23.44]
[1726846878000,1.3277,148.01,147.96,3.379]
[1726846878298,1.3277,148.01,147.9,26.76387127]
[1726846878493,1.3277,148.01,147.94,3.3794]
[1726846878905,1.3277,148.01,147.93,3.3077599]
[1726846879102,1.3277,148.01,147.97,3.3788]
[1726846879296,1.3277,148.01,147.94,3.39968906]
[1726846879604,1.3277,148.01,147.9,23.44]
[1726846879804,4.7058,148.01,147.9,26.8096093]
[1726846880096,1.3277,148.01,147.95,3.3792]
[1726846881403,1.3277,148.01,147.9,138.6496093]
[1726846881596,23.44,148.0,147.9,138.6496093]
[1726846881798,3.3788,147.98,147.9,138.6496093]
[1726846882003,23.44,148.0,147.9,138.6496093]
[1726846882394,3.3788,147.98,147.9,138.6496093]
[1726846882595,1.3277,148.01,147.9,138.6496093]
[1726846882792,23.44,148.0,147.9,138.6496093]
[1726846883005,3.3788,147.98,147.9,138.6496093]
[1726846883202,3.3788,147.98,147.93,3.3795]
[1726846883395,3.3789,147.97,147.9,138.6496093]
[1726846883596,23.44,147.98,147.9,135.28]
[1726846884000,3.3787,147.98,147.9,135.28]
[1726846884207,1.3277,148.01,147.95,3.3792]
[1726846884404,1.3277,148.01,147.9,135.28]
[1726846884608,1.3277,148.01,147.96,3.3789]
[1726846884799,1.3277,148.01,147.91,1.3796]
[1726846885203,24.7677,148.01,147.95,3.3793]
[1726846885600,24.7677,148.01,147.91,1.3796]
[1726846885801,24.7677,148.01,147.93,3.3796]
[1726846886001,24.7677,148.01,147.91,1.3796]
[1726846886299,3.379,147.97,147.91,1.3796]
[1726846886897,24.7677,148.01,147.91,1.3796]
[1726846887100,24.7677,148.01,147.89,3.3598134]
[1726846887303,23.44,147.99,147.87,1.3685]
[1726846887510,3.2977285,147.98,147.88,3.37851541]
[1726846887707,3.3795,147.95,147.92,3.38]
[1726846887908,3.2977285,147.98,147.88,3.37851541]
[1726846888110,23.44,147.99,147.87,1.3685]
[1726846888515,3.40859924,147.98,147.88,3.37074094]
[1726846889215,1.3277,148.01,147.86,23.44]
[1726846889400,1.3277,148.01,147.85,24.7203]
[1726846889721,3.3795,147.95,147.92,3.3799]
[1726846889901,3.3795,147.95,147.85,24.7203]
[1726846889902,26.74144672,147.97,147.88,3.44071119]
[1726846890212,23.44,147.95,147.85,1.2803]
[1726846890401,2.742,147.94,147.85,1.2803]
[1726846890597,2.742,147.94,147.9,3.3803]
[1726846890598,3.3799,147.93,147.9,3.3803]
[1726846890906,3.3799,147.93,147.85,1.2803]
[1726846891208,3.3799,147.93,147.89,3.3805]
[1726846891510,23.44,147.92,147.8,26.79724205]
[1726846891705,24.8135,147.92,147.8,4.63754205]
[1726846891910,3.3811,147.88,147.8,4.63754205]
[1726846892115,24.8135,147.92,147.8,28.07754205]
[1726846892411,24.8135,147.92,147.87,3.3811]
[1726846892803,1.3735,147.92,147.82,23.44]
[1726846893217,2.742,147.94,147.85,23.44]
[1726846893417,2.742,147.94,147.91,3.3801]
[1726846893713,2.742,147.94,147.89,3.32139107]
[1726846894008,2.742,147.94,147.91,3.3801]
[1726846894213,2.742,147.94,147.88,3.30144176]
[1726846894411,2.742,147.94,147.9,3.3803]
[1726846894613,6.1217,147.94,147.88,3.43263384]
[1726846894813,2.742,147.94,147.85,23.44]
[1726846895813,3.3799,147.93,147.85,23.44]
[1726846896316,6.1216,147.94,147.85,23.44]
[1726846897013,3.3798,147.93,147.9,3.3803]
[1726846898905,6.1216,147.94,147.91,3.3801]
[1726846899104,24.7871,148.01,147.88,3.37232891]
[1726846899310,24.7871,148.01,147.85,6.7632]
[1726846899311,2.6975,148.0,147.89,23.44]
[1726846899506,2.6975,148.0,147.9,1.328]
[1726846900718,3.3791,147.96,147.93,3.3798]
[1726846901017,1.4051,147.99,147.9,1.328]
[1726846901219,3.3792,147.96,147.93,3.3796]
[1726846901816,3.3789,147.97,147.94,3.3794]
[1726846902814,3.3789,147.97,147.9,1.328]
[1726846903017,3.3787,147.98,147.9,1.328]
[1726846903223,2.6975,148.0,147.92,14.61]
[1726846903521,3.3785,147.99,147.92,14.61]
[1726846903721,2.6975,148.0,147.92,14.61]
[1726846904720,3.3788,147.98,147.94,3.3793]
[1726846905023,2.6975,148.0,147.94,3.3793]
[1726846905822,2.6975,148.0,147.92,14.61]
[1726846906018,3.3785,147.99,147.92,14.61]
[1726846906216,2.6975,148.0,147.92,14.61]
[1726846906820,2.6975,148.0,147.94,3.3794]
[1726846907416,3.3791,147.97,147.94,3.3794]
[1726846908217,3.3787,147.98,147.95,3.3793]
[1726846909925,3.3787,147.98,147.96,3.379]
[1726846910815,3.3787,147.98,147.95,3.3792]
[1726846911019,3.3787,147.98,147.92,14.61]
[1726846911215,3.3787,147.98,147.95,3.3792]
[1726846913628,3.3784,147.99,147.96,3.379]
[1726846913818,2.6975,148.0,147.96,3.379]
[1726846914225,3.3788,147.98,147.95,3.3792]
[1726846914730,2.6975,148.0,147.92,14.61]
[1726846914921,3.3785,147.99,147.92,14.61]
[1726846915727,3.3785,147.99,147.96,3.3789]
[1726846916534,1.285,148.0,147.92,14.61]
[1726846916731,1.285,148.0,147.9,15.938]
[1726846916933,1.285,148.0,147.96,3.379]
[1726846917623,3.3785,147.99,147.96,3.379]
[1726846917824,14.61,148.03,147.94,14.61]
[1726846918037,3.3783,148.0,147.94,14.61]
[1726846918532,3.3783,148.0,147.97,3.3787]
[1726846919027,3.378,148.01,147.95,14.61]
[1726846919226,1.3427,148.04,147.95,14.61]
[1726846919227,1.3427,148.04,147.96,1.3904]
[1726846919526,3.3773,148.04,147.98,14.61]
[1726846919926,1.4075,148.05,147.98,14.61]
[1726846920128,3.3776,148.03,147.98,14.61]
[1726846920331,16.0175,148.05,147.96,16.0004]
[1726846920530,16.0175,148.05,147.96,1.3904]
[1726846920834,16.0175,148.05,148.0,3.378]
[1726846921331,3.3281514,148.08,148.01,3.3778]
[1726846921332,3.3774,148.04,148.01,3.3778]
[1726846921533,14.61,148.07,148.01,3.3778]
[1726846921735,3.3776,148.03,147.98,18.07198039]
[1726846921936,3.3776,148.03,148.0,3.3781]
[1726846922125,3.378,148.01,147.96,1.3904]
[1726846922327,14.61,148.05,147.96,16.0004]
[1726846923138,14.61,148.05,147.99,3.3783]
[1726846924227,14.61,148.05,148.0,3.3781]
[1726846925032,3.3777,148.02,148.0,3.3781]
[1726846925237,14.61,148.05,147.99,3.3783]
[1726846925430,14.61,148.05,147.96,16.0004]
[1726846925431,3.3781,148.01,147.96,16.0004]
[1726846925838,3.3781,148.01,147.97,3.32173266]
[1726846926140,3.3782,148.0,147.96,16.0004]
[1726846926448,14.61,148.05,147.96,16.0004]
[1726846927137,3.3281514,148.08,147.96,16.0004]
[1726846927340,14.61,148.04,147.96,16.0004]
[1726846927647,14.61,148.04,147.98,3.3785]
[1726846927937,3.3782,148.0,147.98,3.3785]
[1726846928244,14.61,148.0,147.93,1.3606]
[1726846928435,3.3783,148.0,147.93,15.9706]
[1726846928638,3.3783,148.0,147.97,3.3787]
[1726846929030,14.61,148.02,147.93,15.9706]
[1726846929237,2.6764,148.03,147.94,14.61]
[1726846929439,3.3781,148.01,147.94,14.61]
[1726846930041,6.7505,148.13,148.0,14.61]
[1726846930243,1.16011157,148.09,148.02,14.61]
[1726846930541,3.3761,148.09,148.02,14.61]
[1726846930840,3.3761,148.09,148.04,14.61]
[1726846931030,228.0,148.19,148.08,14.61]
[1726846931233,23.0907,148.25,148.1,14.61]
[1726846931534,14.61,148.18,148.09,4.6279]
[1726846931736,17.96755539,148.18,148.09,4.6279]
[1726846931936,17.96755539,148.18,148.09,1.2519]
[1726846932141,17.96755539,148.18,148.06,14.61]
[1726846932142,23.67755539,148.18,148.06,14.61]
[1726846932442,14.61,148.14,148.04,14.61]
[1726846932644,3.3752,148.13,148.06,14.61]
[1726846932845,3.3752,148.13,148.08,14.61]
[1726846933242,4.1637,148.17,148.08,14.61]
[1726846933843,3.375,148.14,148.1,3.3758]
[1726846934037,4.1637,148.17,148.06,14.61]
[1726846934240,3.3756,148.12,148.08,3.3763]
[1726846934461,14.61,148.12,148.03,138.55804186]
[1726846935045,24.4837,148.17,148.03,138.55804186]
[1726846935249,14.61,148.13,148.03,138.55804186]
[1726846936248,14.61,148.11,148.03,135.16]
[1726846936439,20.32,148.15,148.03,135.16]
[1726846936645,14.61,148.12,148.03,135.16]
[1726846937047,14.61,148.14,148.04,14.61]
[1726846937551,4.1637,148.17,148.02,3.3666509]
[1726846937737,14.61,148.09,148.0,15.9249]
[1726846937943,3.3767,148.07,148.04,3.3772]
[1726846938949,3.3764,148.08,148.04,3.3772]
[1726846939352,3.3764,148.08,148.01,3.35044235]
[1726846939353,14.61,148.09,148.01,3.35044235]
[1726846939551,20.32,148.09,147.99,135.1]
[1726846939757,24.5673,148.08,147.99,135.1]
[1726846940054,14.61,148.04,147.95,14.61]
[1726846940238,14.61,148.06,148.01,3.3778]
[1726846940854,14.61,148.06,147.97,14.61]
[1726846941351,3.3769,148.06,147.98,14.61]
[1726846941552,18.8573,148.08,147.98,14.61]
[1726846941749,3.3768,148.06,147.98,14.61]
[1726846942143,3.3768,148.06,148.03,3.3773]
[1726846942543,3.377,148.05,148.03,3.3773]
[1726846942855,18.8573,148.08,148.03,3.3773]
[1726846943156,3.3768,148.06,148.04,3.3772]
[1726846944053,3.3766,148.07,148.04,3.3772]
[1726846944952,2.8358,148.08,148.06,3.3767]
[1726846945158,1.408,148.16,148.05,23.35]
[1726846945462,4.2294,148.16,148.05,23.35]
[1726846945641,4.2294,148.16,148.05,26.67083755]
[1726846945841,3.3751,148.14,148.05,26.67083755]
[1726846946246,4.2294,148.16,148.07,23.35]
[1726846946742,2.8214,148.16,148.07,26.75189125]
[1726846946946,228.0,148.22,148.09,23.35]
[1726846946947,1.408,148.2,148.09,23.35]
[1726846947156,1.408,148.2,148.1,1.3168]
[1726846947360,3.3737,148.2,148.1,1.3168]
[1726846947546,1.3865,148.21,148.12,23.35]
[1726846948655,1.3865,148.21,148.15,3.3746]
[1726846948853,1.3865,148.21,148.11,1.2518]
[1726846949155,23.35,148.17,148.07,3.40189125]
[1726846949468,1.3865,148.21,148.03,25.9186]
[1726846949469,23.35,148.15,148.03,25.9186]
[1726846949655,1.3593,148.16,148.05,23.35]
[1726846950158,4.734,148.16,148.05,23.35]
[1726846950353,1.3593,148.16,148.05,23.35]
[1726846951253,3.3749,148.15,148.05,23.35]
[1726846951857,1.3593,148.16,148.05,23.35]
[1726846952366,24.7365,148.21,148.08,23.35]
[1726846952558,24.7365,148.21,148.09,1.336]
[1726846952858,23.35,148.19,148.09,1.336]
[1726846953653,24.7365,148.21,148.09,1.336]
[1726846953854,3.3738,148.2,148.16,3.3743]
[1726846954354,24.7365,148.21,148.15,3.3746]
[1726846954355,3.3739,148.19,148.15,3.3746]
[1726846954663,23.35,148.19,148.1,1.2507]
[1726846954849,23.35,148.19,148.1,4.63804724]
[1726846955055,3.3744,148.17,148.13,3.375]
[1726846955257,23.35,148.19,148.09,1.336]
[1726846955456,1.3865,148.21,148.1,3.38880637]
[1726846955661,1.3865,148.21,148.09,1.336]
[1726846955863,24.7365,148.21,148.09,1.336]
[1726846956257,3.3741,148.18,148.15,3.3746]
[1726846956464,24.7365,148.21,148.11,3.30407777]
[1726846956663,23.35,148.19,148.09,1.336]
[1726846957762,3.3743,148.17,148.14,3.3749]
[1726846958155,24.7365,148.21,148.09,1.336]
[1726846958355,23.35,148.19,148.09,1.336]
[1726846958759,1.2881,148.18,148.1,3.3757]
[1726846958962,1.2881,148.18,148.07,135.04]
[1726846959460,1.2881,148.18,148.05,23.35]
[1726846960355,1.2881,148.18,148.12,3.3752]
[1726846960356,3.3749,148.15,148.12,3.3752]
[1726846960762,3.3749,148.15,148.05,23.35]
[1726846961368,3.3746,148.16,148.07,23.35]
[1726846961563,3.3746,148.16,148.13,3.375]
[1726846962268,24.7365,148.21,148.07,23.35]
[1726846962664,3.3739,148.19,148.1,23.35]
[1726846962876,1.3865,148.21,148.11,1.3652]
[1726846963773,3.3739,148.19,148.16,3.3744]
[1726846964478,3.3741,148.18,148.16,3.3744]
[1726846964979,23.35,148.19,148.14,3.3749]
[1726846965275,1.3865,148.21,148.11,1.3652]
[1726846965663,3.3742,148.18,148.11,1.3652]
[1726846965968,3.3742,148.18,148.15,3.3746]
[1726846966276,14.59,148.19,148.16,3.3745]
[1726846966566,1.3865,148.21,148.12,14.59]
[1726846966778,3.3737,148.2,148.17,3.3742]
[1726846966964,3.3737,148.2,148.12,14.59]
[1726846967368,3.3737,148.2,148.17,3.3741]
[1726846968364,3.374,148.19,148.12,14.59]
[1726846968569,15.9765,148.21,148.12,14.59]
[1726846969067,1.3865,148.21,148.13,14.59]
[1726846969486,3.3736,148.2,148.17,3.3742]
[1726846970380,1.3865,148.21,148.19,3.3738]
[1726846970765,14.59,148.25,148.19,3.3738]
[1726846971074,3.3728,148.24,148.17,14.59]
[1726846971464,3.3728,148.24,148.22,3.3731]
[1726846972077,3.3728,148.24,148.21,3.3733]
[1726846972576,14.59,148.25,148.17,14.59]
[1726846972772,14.59,148.25,148.15,14.59]
[1726846973582,2.6489,148.28,148.15,14.59]
[1726846973773,14.59,148.24,148.15,14.59]
[1726846974075,2.6489,148.28,148.13,14.59]
[1726846974384,14.59,148.22,148.13,14.59]
[1726846974876,3.3737,148.2,148.13,14.59]
[1726846975075,14.59,148.22,148.13,14.59]
[1726846975476,3.3735,148.21,148.18,3.3739]
[1726846975876,3.373,148.23,148.2,3.3736]
[1726846976077,3.373,148.23,148.18,3.36370385]
[1726846976278,1.15848315,148.27,148.17,14.59]
[1726846976480,1.15848315,148.27,148.18,1.3829]
[1726846976675,1.15848315,148.27,148.19,14.59]
[1726846977177,4.53058315,148.27,148.24,3.3725]
[1726846977579,3.3721,148.27,148.24,3.3725]
[1726846978383,3.41736691,148.33,148.23,14.59]
[1726846978578,1.2961,148.32,148.23,14.59]
[1726846978778,14.59,148.28,148.2,3.34907569]
[1726846979084,14.59,148.28,148.18,15.9729]
[1726846979284,1.2961,148.32,148.25,3.3724]
[1726846979479,14.59,148.3,148.19,14.59]
[1726846979675,14.59,148.3,148.21,14.59]
[1726846980080,14.59,148.3,148.19,15.8401]
[1726846980483,3.3722,148.27,148.19,15.8401]
[1726846980787,14.59,148.3,148.19,15.8401]
[1726846981188,3.3721,148.27,148.24,3.3725]
[1726846981591,3.3719,148.28,148.19,15.8401]
[1726846982083,14.59,148.3,148.19,15.8401]
[1726846982084,3.3721,148.27,148.19,15.8401]
[1726846982380,14.59,148.28,148.19,15.8401]
[1726846983285,3.3724,148.26,148.23,3.3728]
[1726846984086,14.59,148.28,148.19,15.8401]
[1726846984284,1.317,148.34,148.23,14.59]
[1726846984485,17.03135796,148.33,148.23,14.59]
[1726846984682,2.6451,148.33,148.23,14.59]
[1726846984986,14.59,148.31,148.23,14.59]
[1726846985185,14.59,148.31,148.21,14.59]
[1726846985687,3.3719,148.28,148.25,3.3724]
[1726846985892,14.59,148.31,148.21,14.59]
[1726846986087,14.59,148.27,148.19,15.8401]
[1726846986284,17.9621,148.27,148.23,3.3727]
[1726846986487,14.59,148.27,148.23,3.3727]
[1726846986682,14.59,148.27,148.19,15.8401]
[1726846986996,3.3729,148.24,148.2,3.3735]
[1726846987179,3.3729,148.24,148.18,4.78055213]
[1726846987377,3.3729,148.24,148.21,3.3733]
[1726846987582,15.9803,148.26,148.18,4.78055213]
[1726846988490,3.3725,148.25,148.18,4.78055213]
[1726846989387,14.59,148.22,148.15,134.96]
[1726846989783,14.59,148.22,148.16,3.3744]
[1726846990290,1.3454,148.21,148.15,138.3346]
[1726846990486,3.374,148.19,148.15,134.96]
[1726846990793,3.374,148.19,148.15,3.3746]
[1726846991093,14.59,148.19,148.15,3.3746]
[1726846991283,3.3742,148.18,148.15,3.3746]
[1726846991488,14.59,148.19,148.11,1.3498]
[1726846992193,3.3742,148.18,148.11,1.3498]
[1726846993283,3.3742,148.18,148.15,3.3746]
[1726846993690,17.9639,148.19,148.15,3.3746]
[1726846993882,17.9639,148.19,148.16,3.3745]
[1726846994083,15.9354,148.21,148.12,14.59]
[1726846994284,3.3737,148.2,148.12,14.59]
[1726846994498,3.3737,148.2,148.11,1.3498]
[1726846994693,3.3737,148.2,148.11,15.9398]
[1726846994894,3.3738,148.19,148.11,15.9398]
[1726846995094,15.9354,148.21,148.16,3.3743]
[1726846995391,14.59,148.19,148.11,1.3498]
[1726846995583,1.3952,148.18,148.11,1.3498]
[1726846996092,1.3952,148.18,148.15,3.3746]
[1726846996093,4.7693,148.18,148.15,3.3746]
[1726846996588,1.3952,148.18,148.11,15.9398]
[1726846997691,4.7693,148.18,148.15,3.3746]
[1726846997886,1.3952,148.18,148.11,15.9398]
[1726846998094,14.59,148.17,148.1,3.40850776]
[1726846998285,14.59,148.17,148.08,14.59]
[1726846998894,3.3746,148.16,148.13,3.3752]
[1726846999096,1.3952,148.18,148.1,3.44167679]
[1726846999392,3.3743,148.17,148.14,3.3749]
[1726846999896,1.3952,148.18,148.12,3.3346834]